bitfinex-derivatives/quotes_SOLF0:USTF0_20250124
["timestamp","ask_amount","ask_price","bid_price","bid_amount"]
[1737683873043,0.02566225,249.16,249.07,0.07528797]
[1737683873845,0.02566225,249.16,249.15,4.0142]
[1737683874648,14.8271428,249.26,249.17,4.0138]
[1737683875749,0.02540219,249.24,249.19,0.02923481]
[1737683876249,4.0129,249.23,249.19,0.02923481]
[1737683878453,0.02540219,249.24,249.21,4.0132]
[1737683878952,0.02540219,249.24,249.23,4.0129]
[1737683879453,0.02540219,249.24,249.19,0.02923481]
[1737683880052,0.02540219,249.24,249.19,4.04263481]
[1737683880453,0.02540219,249.24,249.19,0.02923481]
[1737683880750,0.02540219,249.24,249.21,4.0132]
[1737683881049,0.02540219,249.24,249.19,0.02923481]
[1737683881351,0.02540219,249.24,249.22,4.0129]
[1737683881752,0.02540219,249.24,249.19,0.02923481]
[1737683881952,0.02540219,249.24,249.2,4.0133]
[1737683882252,0.02540219,249.24,249.19,0.02923481]
[1737683882650,0.02540219,249.24,249.2,4.0133]
[1737683882849,0.02540219,249.24,249.19,0.02923481]
[1737683883250,0.02540219,249.24,249.23,4.0129]
[1737683884856,4.0116,249.31,249.26,4.0123]
[1737683885154,9.27363491,249.29,249.2,3.9473]
[1737683885651,4.0122,249.28,249.22,4.013]
[1737683885855,9.27363491,249.29,249.2,3.9473]
[1737683886155,0.02711642,249.27,249.23,0.02576156]
[1737683886349,9.27363491,249.34,249.2,3.9473]
[1737683886546,4.0115,249.32,249.27,4.0122]
[1737683886853,0.02837737,249.29,249.2,3.9473]
[1737683887054,0.02837737,249.29,249.27,0.02969951]
[1737683887252,0.02837737,249.29,249.28,4.0121]
[1737683889055,9.27363491,249.38,249.26,0.02670847]
[1737683889756,13.28423491,249.38,249.32,4.0114]
[1737683889958,9.27363491,249.38,249.25,9.27363491]
[1737683890158,9.27363491,249.42,249.25,9.27363491]
[1737683890358,0.02832463,249.34,249.33,4.0113]
[1737683890560,4.0103,249.4,249.25,9.27363491]
[1737683890759,0.02985991,249.36,249.31,0.02787325]
[1737683891558,4.04075991,249.36,249.31,0.02787325]
[1737683891752,0.02985991,249.36,249.31,0.02787325]
[1737683894164,4.0114,249.32,249.31,0.02787325]
[1737683894664,4.0114,249.32,249.2,2.56935454]
[1737683895163,4.0111,249.34,249.2,2.56935454]
[1737683895363,9.27363491,249.37,249.2,2.56935454]
[1737683895758,0.03015063,249.31,249.3,4.0117]
[1737683896058,9.27363491,249.41,249.22,9.27363491]
[1737683896254,0.02811429,249.33,249.28,0.02681422]
[1737683896660,9.27363491,249.49,249.3,9.27363491]
[1737683896856,9.27363491,249.49,249.34,9.27363491]
[1737683897866,0.02840686,249.44,249.39,0.0281333]
[1737683898768,4.0098,249.43,249.39,0.0281333]
[1737683899159,0.02840686,249.44,249.39,0.0281333]
[1737683899967,0.02840686,249.44,249.39,4.0383333]
[1737683900471,4.0097,249.43,249.39,0.0281333]
[1737683900669,0.02840686,249.44,249.39,0.0281333]
[1737683901066,4.01,249.41,249.39,0.0281333]
[1737683901960,4.0098,249.43,249.39,0.0281333]
[1737683902871,13.28363491,249.41,249.39,0.0281333]
[1737683903071,13.28363491,249.41,249.39,3.33e-05]
[1737683904071,0.02840686,249.44,249.39,3.33e-05]
[1737683904772,4.01,249.41,249.39,3.33e-05]
[1737683905871,13.28363491,249.41,249.39,3.33e-05]
[1737683907373,4.01,249.41,249.39,3.33e-05]
[1737683907869,0.02840686,249.44,249.39,3.33e-05]
[1737683908074,9.27363491,249.57,249.41,9.27363491]
[1737683908471,4.0076,249.56,249.49,4.0087]
[1737683909275,0.02767766,249.55,249.5,4.03918833]
[1737683910181,4.008,249.54,249.5,0.03068833]
[1737683910575,0.02767766,249.55,249.5,0.03068833]
[1737683911780,4.0083,249.52,249.5,0.03068833]
[1737683913777,4.0081,249.53,249.5,0.03068833]
[1737683914881,4.0081,249.53,249.38,3.9661]
[1737683915084,4.0082,249.52,249.38,3.9661]
[1737683915283,14.80213119,249.58,249.38,3.9661]
[1737683916179,0.02531883,249.5,249.46,0.02916045]
[1737683917083,0.02531883,249.5,249.49,4.0087]
[1737683918878,2.5012,249.64,249.52,4.008]
[1737683919085,2.5012,249.64,249.44,14.80213119]
[1737683919785,14.80213119,249.67,249.48,14.80213119]
[1737683919982,14.80213119,249.67,249.49,2.6218]
[1737683920183,0.02613112,249.6,249.55,0.02900088]
[1737683920378,0.02613112,249.6,249.59,4.0071]
[1737683920586,0.02613112,249.6,249.55,0.02900088]
[1737683920881,0.02613112,249.6,249.58,4.0072]
[1737683921386,0.02613112,249.6,249.55,0.02900088]
[1737683921387,14.80213119,249.75,249.56,14.80213119]
[1737683921583,14.80213119,249.75,249.64,4.0062]
[1737683921786,4.0052,249.71,249.64,4.0062]
[1737683922281,17.58574108,249.77,249.64,4.0062]
[1737683922583,17.58574108,249.77,249.65,0.02687017]
[1737683922584,0.02743764,249.7,249.65,0.02687017]
[1737683922885,14.80213119,249.71,249.52,14.80213119]
[1737683923378,0.02814804,249.64,249.59,0.02626425]
[1737683924479,17.35963119,249.79,249.69,4.0055]
[1737683924684,2.5575,249.79,249.69,4.0055]
[1737683925082,2.5575,249.79,249.7,4.0053]
[1737683925280,5.42821369,249.81,249.6,16.17343119]
[1737683925480,5.42821369,249.81,249.64,14.80213119]
[1737683925686,5.42821369,249.81,249.73,4.0048]
[1737683925886,0.02840186,249.75,249.73,4.0048]
[1737683926286,5.42821369,249.81,249.72,0.03016513]
[1737683926485,5.42821369,249.81,249.72,14.80213119]
[1737683926686,5.42821369,249.81,249.73,1.3713]
[1737683926890,1.2476,249.92,249.76,14.80213119]
[1737683927188,21.71285477,249.93,249.76,14.80213119]
[1737683927383,0.02632667,249.86,249.82,0.02837045]
[1737683927781,4.02912667,249.86,249.82,0.02837045]
[1737683928183,0.02632667,249.86,249.82,0.02837045]
[1737683929493,0.02632667,249.86,249.82,4.03167045]
[1737683930690,0.02632667,249.86,249.82,0.02837045]
[1737683932096,0.02632667,249.86,249.82,4.03177045]
[1737683932397,0.02632667,249.86,249.82,0.02837045]
[1737683932802,0.02632667,249.86,249.84,4.003]
[1737683934502,12.05,250.13,249.84,14.80213119]
[1737683934503,4.0011,249.97,249.84,14.80213119]
[1737683934702,4.0011,249.97,249.85,1.3299]
[1737683935094,4.0012,249.96,249.89,4.0022]
[1737683935299,14.80213119,250.07,249.85,1.3299]
[1737683935696,0.02635587,249.97,249.93,4.0016]
[1737683935905,0.02635587,249.97,249.85,0.19016793]
[1737683936502,0.02635587,249.97,249.93,4.0016]
[1737683936698,0.02635587,249.97,249.85,0.19016793]
[1737683936900,0.02635587,249.97,249.88,4.0023]
[1737683937205,0.02635587,249.97,249.89,0.02781918]
[1737683938106,0.02635587,249.97,249.9,4.0021]
[1737683939107,0.02635587,249.97,249.89,0.02781918]
[1737683939799,0.02635587,249.97,249.91,4.0019]
[1737683940000,0.02635587,249.97,249.89,0.02781918]
[1737683940407,4.0014,249.95,249.89,0.02781918]
[1737683940605,0.02635587,249.97,249.89,0.02781918]
[1737683941910,0.02635587,249.97,249.91,4.0018]
[1737683943201,4.02735587,249.97,249.91,4.0018]
[1737683944317,0.02635587,249.97,249.9,1.2879]
[1737683944513,0.02635587,249.97,249.91,1.2732]
[1737683944713,0.02635587,249.97,249.93,4.0016]
[1737683945010,0.02635587,249.97,249.91,1.2732]
[1737683945212,0.02635587,249.97,249.89,0.02781918]
[1737683945413,4.0016,249.94,249.89,0.02781918]
[1737683945810,0.02635587,249.97,249.89,0.02781918]
[1737683946614,4.0021,249.9,249.89,0.02781918]
[1737683948211,4.0021,249.9,249.89,1.918e-05]
[1737683948511,0.02858125,249.92,249.74,1.2692]
[1737683948810,14.80213119,249.95,249.77,4.0041]
[1737683949008,4.0029,249.86,249.74,1.2692]
[1737683949211,14.80213119,249.95,249.74,1.2692]
[1737683949411,14.80213119,249.95,249.76,14.80213119]
[1737683949612,8.089e-05,249.87,249.82,0.02899718]
[1737683949812,8.089e-05,249.87,249.85,18.80503119]
[1737683950012,4.0005,250.01,249.86,3.9186]
[1737683950212,1.2754,250.06,249.86,3.9186]
[1737683950414,1.2754,250.06,249.94,4.0014]
[1737683950714,1.2754,250.06,249.86,3.9186]
[1737683950906,0.02995988,250.03,249.98,0.02956959]
[1737683952212,4.0006,250.0,249.98,0.02956959]
[1737683952711,0.02995988,250.03,249.98,0.02956959]
[1737683953709,4.03005988,250.03,249.98,0.02956959]
[1737683953916,0.02995988,250.03,249.98,0.02956959]
[1737683954618,4.0005,250.0,249.98,0.02956959]
[1737683956116,4.0014,249.95,249.89,4.0022]
[1737683956317,14.80213119,250.04,249.86,3.9186]
[1737683956716,14.80213119,250.04,249.9,4.002]
[1737683957221,0.02663627,249.99,249.95,0.02599698]
[1737683958311,0.02663627,249.99,249.81,14.80213119]
[1737683958516,1.3196,250.03,249.81,14.80213119]
[1737683958919,4.0012,249.96,249.9,4.002]
[1737683959321,0.02550212,249.95,249.91,0.02755272]
[1737683959621,0.02550212,249.95,249.81,14.80213119]
[1737683959816,0.02550212,249.95,249.91,0.02853368]
[1737683960121,0.02550212,249.95,249.91,0.02656428]
[1737683960817,4.0018,249.92,249.91,0.02656428]
[1737683961320,4.0029,249.86,249.81,4.0035]
[1737683961520,4.0029,249.86,249.76,14.80213119]
[1737683961821,2.6039,249.95,249.76,14.80213119]
[1737683962013,2.6039,249.95,249.8,4.0036]
[1737683962521,4.0028,249.86,249.85,0.026589]
[1737683962920,0.02963347,249.9,249.85,0.026589]
[1737683963120,4.0025,249.88,249.85,0.026589]
[1737683964824,0.02963347,249.9,249.85,0.026589]
[1737683966122,4.0025,249.88,249.85,0.026589]
[1737683966623,0.02963347,249.9,249.85,0.026589]
[1737683967122,0.02963347,249.9,249.87,4.0025]
[1737683968617,0.02963347,249.9,249.85,0.026589]
[1737683970118,4.0025,249.88,249.85,0.026589]
[1737683970817,4.0026,249.87,249.85,0.026589]
[1737683971019,0.02963347,249.9,249.85,0.026589]
[1737683971224,4.0024,249.88,249.85,0.026589]
[1737683971423,0.02963347,249.9,249.85,0.026589]
[1737683971823,0.02963347,249.9,249.87,4.0024]
[1737683972023,0.02963347,249.9,249.85,0.026589]
[1737683973218,0.02963347,249.9,249.89,4.0023]
[1737683973426,9.22254182,250.0,249.86,11.75974182]
[1737683973627,2.5828,250.02,249.86,11.75974182]
[1737683974122,2.5828,250.02,249.95,4.0012]
[1737683974328,2.5828,250.02,249.86,11.75974182]
[1737683974529,0.03007577,250.01,249.96,0.02999254]
[1737683974730,4.0006,250.0,249.96,0.02999254]
[1737683975128,0.03007577,250.01,249.96,0.02999254]
[1737683976031,4.03057577,250.01,249.96,0.02999254]
[1737683976726,4.03057577,250.01,249.96,4.03109254]
[1737683976931,4.03057577,250.01,249.96,0.02999254]
[1737683976932,0.03007577,250.01,249.96,0.02999254]
[1737683977928,0.03007577,250.01,249.99,4.0006]
[1737683978228,0.03007577,250.01,249.96,0.02999254]
[1737683978634,0.03007577,250.01,250.0,4.0005]
[1737683979932,0.03007577,250.01,249.94,8.17481976]
[1737683981231,0.03007577,250.01,249.95,0.02774762]
[1737683982534,4.03047577,250.01,249.95,0.02774762]
[1737683983735,0.03007577,250.01,249.95,0.02774762]
[1737683983939,9.25261759,250.01,249.95,0.02774762]
[1737683984334,9.25261759,250.01,249.88,4.0023]
[1737683984335,4.0013,249.96,249.88,4.0023]
[1737683984633,9.22254182,249.97,249.86,2.5372]
[1737683984830,1.2538,250.0,249.86,2.5372]
[1737683985036,4.0008,249.99,249.92,4.0017]
[1737683985236,4.0008,249.99,249.86,2.5372]
[1737683985538,4.03034867,249.98,249.93,0.02664807]
[1737683985730,0.02944867,249.98,249.93,0.02664807]
[1737683988141,0.02944867,249.98,249.96,4.0011]
[1737683990035,0.02944867,249.98,249.97,4.001]
[1737683990540,0.02944867,249.98,249.94,9.22254182]
[1737683990740,0.02944867,249.98,249.93,0.02664807]
[1737683991542,0.02944867,249.98,249.97,4.001]
[1737683991942,0.02944867,249.98,249.93,0.02664807]
[1737683992139,0.02944867,249.98,249.95,4.0012]
[1737683992739,0.02944867,249.98,249.93,4.02814807]
[1737683993645,0.02944867,249.98,249.94,4.0014]
[1737683994739,0.02944867,249.98,249.97,4.001]
[1737683997348,3.9994,250.08,250.02,4.0001]
[1737683998047,18.56427437,250.13,250.02,4.0001]
[1737683998249,3.9994,250.07,250.02,4.0001]
[1737683998441,4.02667985,250.07,250.02,4.02683676]
[1737683999749,4.02667985,250.07,250.03,4.0]
[1737684000246,0.02727985,250.07,250.02,0.02673676]
[1737684000446,0.02727985,250.07,250.06,3.9995]
[1737684000748,0.02727985,250.07,249.99,14.75207437]
[1737684001852,0.02727985,250.07,250.06,3.9995]
[1737684002548,1.3121,250.24,250.15,3.9981]
[1737684002749,3.9971,250.22,250.15,3.9981]
[1737684003648,0.03050214,250.21,250.16,0.0271006]
[1737684003846,3.9976,250.18,250.16,0.0271006]
[1737684004054,14.78257651,250.21,250.01,1.2796]
[1737684004253,3.9988,250.11,250.04,3.9998]
[1737684004447,3.9988,250.11,250.01,1.2796]
[1737684004844,14.75207437,250.17,250.01,1.2796]
[1737684005046,14.75207437,250.13,249.91,14.75207437]
[1737684005250,1.3634229,250.12,250.06,0.02699412]
[1737684005454,1.3341,250.12,249.91,14.75207437]
[1737684005649,3.9994,250.07,250.06,0.02736678]
[1737684005849,0.02713365,250.09,249.99,0.02550506]
[1737684006052,14.75207437,250.09,249.99,0.02550506]
[1737684006353,4.0004,250.01,249.99,0.02550506]
[1737684007055,14.75207437,250.01,249.91,109.53800934]
[1737684007651,4.0014,249.95,249.91,109.53800934]
[1737684007855,14.75207437,250.01,249.91,109.53800934]
[1737684008058,4.0014,249.95,249.91,109.53800934]
[1737684008355,0.02526109,249.98,249.94,0.02623706]
[1737684008655,4.0011,249.97,249.94,0.02623706]
[1737684008851,14.75207437,249.97,249.82,1.2664]
[1737684009558,1.3407,249.99,249.82,1.2664]
[1737684009951,1.3407,249.99,249.88,0.02888713]
[1737684010157,0.02552376,249.93,249.88,0.02888713]
[1737684012158,0.02552376,249.93,249.9,4.002]
[1737684013355,0.02552376,249.93,249.91,4.0019]
[1737684013857,0.02552376,249.93,249.89,4.0021]
[1737684014052,0.02552376,249.93,249.88,0.02888713]
[1737684015657,0.02552376,249.93,249.91,4.0019]
[1737684018060,14.75207437,250.13,250.03,4.0]
[1737684018252,14.75207437,250.17,249.95,14.75207437]
[1737684018963,3.9985,250.13,249.95,14.75207437]
[1737684019259,0.02925274,250.07,250.01,0.0278822]
[1737684019461,0.02925274,250.07,250.06,3.9995]
[1737684019864,0.02925274,250.07,250.01,0.02893082]
[1737684021659,0.02925274,250.07,250.05,3.9996]
[1737684022559,0.02925274,250.07,250.03,3.9999]
[1737684022962,0.02925274,250.07,250.01,0.02893082]
[1737684023765,0.02925274,250.07,250.05,3.9997]
[1737684024464,0.02925274,250.07,250.01,0.02893082]
[1737684024665,0.02925274,250.07,250.02,4.0001]
[1737684024865,0.02925274,250.07,250.01,0.02893082]
[1737684025666,0.02925274,250.07,250.02,4.0]
[1737684025867,0.02925274,250.07,250.01,0.02893082]
[1737684026365,0.02925274,250.07,250.04,3.9997]
[1737684026664,0.02925274,250.07,250.01,0.02893082]
[1737684026864,0.02925274,250.07,250.04,3.9998]
[1737684027067,0.02925274,250.07,250.01,0.02893082]
[1737684027458,0.02925274,250.07,250.01,1.32353082]
[1737684028067,0.02925274,250.07,250.05,3.9996]
[1737684028967,1.3643,250.18,250.13,3.9982]
[1737684029268,14.75207437,250.25,250.04,1.2893]
[1737684029464,1.289,250.24,250.04,1.2893]
[1737684029674,14.75207437,250.21,250.06,3.9994]
[1737684029864,14.75207437,250.17,250.01,1.2946]
[1737684030070,14.75207437,250.17,250.06,0.02907784]
[1737684030263,0.03006869,250.12,250.06,0.02907784]
[1737684033271,3.9988,250.11,250.06,0.02907784]
[1737684033468,0.03006869,250.12,250.06,0.02907784]
[1737684033974,3.9991,250.09,250.06,0.02907784]
[1737684034872,3.9989,250.11,250.06,0.02907784]
[1737684035072,0.03006869,250.12,250.06,0.02907784]
[1737684035471,0.03006869,250.12,250.09,3.999]
[1737684036675,0.03006869,250.12,250.06,0.02907784]
[1737684036869,3.9988,250.11,250.06,4.02847784]
[1737684037065,0.03006869,250.12,250.06,0.02907784]
[1737684037975,3.9994,250.07,250.06,0.02907784]
[1737684038173,3.9994,250.07,250.06,0.00072236]
[1737684038978,1.3094,250.11,250.06,0.00072236]
[1737684039175,3.9993,250.08,250.06,0.00072236]
[1737684039475,1.3094,250.11,250.06,0.00072236]
[1737684039671,3.999,250.09,250.06,0.00072236]
[1737684040269,3.9992,250.08,250.06,0.00072236]
[1737684040776,1.3094,250.11,250.06,0.00072236]
[1737684041677,3.9993,250.07,250.06,0.00072236]
[1737684041974,14.75207437,250.09,249.93,1.3416]
[1737684042174,3.9997,250.05,249.97,4.0008]
[1737684042377,14.75207437,250.09,249.93,1.3416]
[1737684042576,1.3094,250.11,249.93,1.3416]
[1737684042979,0.02666152,250.05,249.99,0.0292224]
[1737684043881,0.02666152,250.05,250.0,4.0004]
[1737684044180,0.02666152,250.05,249.99,0.0292224]
[1737684044882,4.0004,250.0,249.99,0.0292224]
[1737684046284,4.0002,250.02,249.99,0.0292224]
[1737684048083,3.9998,250.04,249.99,0.0292224]
[1737684048286,0.02666152,250.05,249.99,0.0292224]
[1737684048782,4.02636152,250.05,249.99,4.0296224]
[1737684049484,4.02636152,250.05,250.0,4.0004]
[1737684049982,0.02666152,250.05,249.99,0.0292224]
[1737684050186,0.02666152,250.05,250.03,3.9999]
[1737684050385,0.02666152,250.05,249.84,9.21584087]
[1737684050683,9.21584087,249.98,249.79,13.17534087]
[1737684050880,9.21584087,249.94,249.79,13.17534087]
[1737684051280,9.21584087,249.94,249.81,109.53800934]
[1737684051688,0.02898675,249.9,249.85,0.03075547]
[1737684054387,0.02898675,249.9,249.88,4.0023]
[1737684059690,0.02898675,249.9,249.89,4.0022]
[1737684059884,0.02898675,249.9,249.85,0.03075547]
[1737684060288,14.79032049,249.9,249.85,0.03075547]
[1737684060794,4.0025,249.87,249.85,0.03075547]
[1737684061094,14.79032049,249.9,249.85,0.03075547]
[1737684061393,18.79242049,249.9,249.85,0.03075547]
[1737684061595,14.79032049,249.9,249.85,0.03075547]
[1737684061986,4.0027,249.86,249.85,0.03075547]
[1737684062191,14.76133374,249.86,249.73,2.6017]
[1737684062796,4.0032,249.83,249.78,4.0039]
[1737684063095,1.2659,249.93,249.73,2.6017]
[1737684063296,0.02670556,249.83,249.82,4.0033]
[1737684063494,1.2659,249.93,249.82,4.0033]
[1737684063699,0.02671167,249.85,249.8,0.028714]
[1737684063989,14.76133374,249.87,249.77,4.0041]
[1737684064195,0.02557405,249.85,249.8,0.02532304]
[1737684064393,14.76133374,249.82,249.8,0.02532304]
[1737684064592,14.76133374,249.82,249.65,1.3106]
[1737684064898,14.76133374,249.78,249.65,1.3106]
[1737684065098,4.0048,249.73,249.64,2.6689]
[1737684065499,4.0051,249.71,249.65,4.0059]
[1737684065694,0.0256632,249.71,249.66,0.029229]
[1737684065898,14.76133374,249.69,249.66,0.029229]
[1737684066392,14.76133374,249.69,249.58,109.53800934]
[1737684066393,4.006,249.66,249.58,109.53800934]
[1737684066599,1.3135,249.68,249.58,109.53800934]
[1737684067098,4.0058,249.67,249.58,4.0071]
[1737684067597,0.0258378,249.65,249.6,0.03009469]
[1737684068299,4.0064,249.63,249.6,0.03009469]
[1737684068700,14.78717154,249.65,249.6,0.03009469]
[1737684068901,4.0062,249.64,249.6,0.03009469]
[1737684069802,0.0258378,249.65,249.6,0.03009469]
[1737684070999,0.0258378,249.65,249.48,1.2462]
[1737684071201,1.3135,249.68,249.48,1.2462]
[1737684071597,4.0069,249.6,249.52,4.0081]
[1737684071803,1.256,249.67,249.48,1.2462]
[1737684072105,14.76133374,249.62,249.43,1.268]
[1737684072304,4.0072,249.58,249.55,0.02619607]
[1737684072506,14.76133374,249.62,249.43,1.268]
[1737684072798,0.02701352,249.59,249.54,0.03030432]
[1737684074202,14.76133374,249.58,249.54,0.03030432]
[1737684074404,4.0087,249.49,249.42,5.2655]
[1737684074601,4.0087,249.49,249.42,4.0096]
[1737684074797,14.76133374,249.53,249.32,1.2963]
[1737684075099,4.0093,249.45,249.39,4.0101]
[1737684075806,4.03517917,249.44,249.3,1.2963]
[1737684076706,4.03517917,249.44,249.37,4.0105]
[1737684076905,0.02577917,249.44,249.37,4.0105]
[1737684077807,0.02577917,249.44,249.38,4.0103]
[1737684078506,0.02577917,249.44,249.3,1.2963]
[1737684078807,0.02577917,249.44,249.31,14.76133374]
[1737684080006,0.02577917,249.44,249.42,4.0096]
[1737684083516,0.02577917,249.44,249.3,1.2963]
[1737684084014,0.02577917,249.44,249.4,4.01]
[1737684084212,0.02577917,249.44,249.3,1.2963]
[1737684084710,0.02577917,249.44,249.41,4.0099]
[1737684084909,0.02577917,249.44,249.3,1.2963]
[1737684085216,1.3032,249.56,249.39,14.76133374]
[1737684085415,1.3032,249.56,249.4,2.5803]
[1737684086115,1.3068,249.59,249.4,2.5803]
[1737684086310,1.3068,249.59,249.55,4.0074]
[1737684086511,0.02856408,249.52,249.47,0.02908172]
[1737684086712,14.76133374,249.64,249.4,2.5803]
[1737684086913,0.02575298,249.52,249.47,0.02908172]
[1737684087314,14.76133374,249.64,249.43,14.76133374]
[1737684087515,0.02972009,249.52,249.47,0.0284773]
[1737684087711,14.76133374,249.64,249.43,14.76133374]
[1737684087914,4.0063,249.63,249.54,4.0075]
[1737684088318,0.02932462,249.56,249.54,4.0075]
[1737684088519,14.76133374,249.64,249.56,0.02876315]
[1737684088717,4.0066,249.61,249.53,4.0077]
[1737684089116,4.0066,249.61,249.56,0.02898564]
[1737684089320,0.02795893,249.62,249.56,0.02898564]
[1737684089516,4.007,249.58,249.56,0.02898564]
[1737684089916,4.0069,249.61,249.56,0.02898564]
[1737684090518,4.007,249.6,249.56,0.02898564]
[1737684090818,0.02795893,249.62,249.56,0.02898564]
[1737684091014,4.0072,249.58,249.56,0.02898564]
[1737684091720,4.008,249.53,249.45,4.0093]
[1737684092723,0.02697871,249.51,249.45,4.0093]
[1737684093623,0.02697871,249.51,249.46,4.0091]
[1737684093922,0.02697871,249.51,249.41,1.2597]
[1737684094826,0.02697871,249.51,249.32,14.76133374]
[1737684095024,2.7191,249.55,249.32,14.76133374]
[1737684095225,0.02939723,249.44,249.38,4.0104]
[1737684095415,2.7191,249.55,249.38,4.0104]
[1737684095623,0.02610925,249.43,249.38,4.0104]
[1737684095821,4.0095,249.43,249.38,4.0104]
[1737684096025,0.02729942,249.43,249.31,3.7785]
[1737684096518,0.02729942,249.43,249.34,4.011]
[1737684096519,4.0102,249.4,249.34,4.011]
[1737684096724,0.02729942,249.43,249.31,3.7785]
[1737684096925,14.76133374,249.48,249.31,3.7785]
[1737684097224,0.02817758,249.39,249.31,3.7785]
[1737684098023,0.02817758,249.39,249.34,4.0109]
[1737684098224,0.02817758,249.39,249.31,3.7785]
[1737684099125,0.02817758,249.39,249.37,4.0105]
[1737684100123,0.02817758,249.39,249.36,4.0104]
[1737684100326,0.02817758,249.39,249.31,3.7785]
[1737684101227,0.02817758,249.39,249.34,4.0108]
[1737684101723,4.0107,249.36,249.31,2.5135]
[1737684101924,0.02817758,249.39,249.25,1.3546]
[1737684102124,3.7807,249.43,249.25,1.3546]
[1737684102328,0.02621893,249.34,249.25,1.3546]
[1737684103726,0.02621893,249.34,249.32,4.0114]
[1737684105224,14.76133374,249.48,249.39,4.0103]
[1737684105528,14.76133374,249.48,249.27,14.76133374]
[1737684105728,14.76133374,249.48,249.28,1.259]
[1737684106230,4.0096,249.43,249.37,4.0105]
[1737684106431,0.02833051,249.4,249.37,4.0105]
[1737684106628,14.76133374,249.48,249.37,4.0105]
[1737684106829,0.02654369,249.41,249.37,4.0105]
[1737684107432,0.02654369,249.41,249.36,0.02631501]
[1737684108131,0.02654369,249.41,249.36,4.03701501]
[1737684108532,0.02654369,249.41,249.36,0.02631501]
[1737684108733,0.02654369,249.41,249.37,4.0106]
[1737684109035,0.02654369,249.41,249.36,0.02631501]
[1737684110233,0.02654369,249.41,249.38,4.0104]
[1737684110733,0.02654369,249.41,249.36,4.03701501]
[1737684110924,0.02654369,249.41,249.36,0.02631501]
[1737684112130,4.0103,249.39,249.36,0.02631501]
[1737684112332,0.02654369,249.41,249.36,0.02631501]
[1737684112635,4.0106,249.37,249.36,0.02631501]
[1737684113840,14.78787743,249.41,249.36,0.02631501]
[1737684114333,4.0106,249.37,249.36,0.02631501]
[1737684114936,4.0106,249.37,249.36,1.501e-05]
[1737684116034,14.76133374,249.37,249.2,2.5973]
[1737684116336,14.76133374,249.32,249.21,4.013]
[1737684117033,4.0124,249.26,249.21,4.013]
[1737684118240,0.02960921,249.29,249.2,2.5973]
[1737684118441,0.02960921,249.29,249.22,4.013]
[1737684118641,0.02960921,249.29,249.2,2.5973]
[1737684118842,0.02960921,249.29,249.2,1.3536]
[1737684119044,0.02960921,249.29,249.18,1.3247]
[1737684119536,0.02960921,249.29,249.14,2.6823]
[1737684119741,14.76133374,249.32,249.2,4.0132]
[1737684119933,0.0280371,249.24,249.2,4.0132]
[1737684120644,0.0280371,249.24,249.21,4.0132]
[1737684121442,0.0280371,249.24,249.14,2.6823]
[1737684122445,4.0131,249.22,249.17,4.0138]
[1737684122644,0.0280371,249.24,249.14,2.6823]
[1737684122845,0.0280371,249.24,249.14,1.3716]
[1737684123049,0.0280371,249.24,249.08,1.2573]
[1737684123050,4.0135,249.2,249.08,1.2573]
[1737684123443,0.02728266,249.16,249.08,1.2573]
[1737684123743,0.02728266,249.16,249.04,14.76133374]
[1737684123744,0.02728266,249.16,249.02,2.5138]
[1737684123944,0.02728266,249.16,249.02,3.8453]
[1737684124244,14.7886164,249.16,249.02,3.8453]
[1737684124546,4.0148,249.11,249.02,3.8453]
[1737684124942,0.03068271,249.09,249.02,3.8453]
[1737684125546,0.03068271,249.09,249.06,4.0155]
[1737684125738,0.03068271,249.09,249.02,3.8453]
[1737684125942,0.03068271,249.09,249.07,4.0154]
[1737684128847,0.03068271,249.09,249.05,4.0156]
[1737684130041,4.0154,249.07,249.02,4.0161]
[1737684130244,0.03068271,249.09,248.98,12.47554155]
[1737684130440,0.03068271,249.09,248.97,1.2731]
[1737684130846,4.0158,249.03,248.97,1.2731]
[1737684131348,0.0308813,249.02,248.97,1.2731]
[1737684131749,0.0308813,249.02,248.97,5.2899]
[1737684132746,0.0308813,249.02,248.97,4.0168]
[1737684133947,0.0308813,249.02,248.92,1.2806]
[1737684134253,4.0165,249.0,248.94,4.0174]
[1737684134745,4.0165,249.0,248.95,4.0172]
[1737684134944,4.0168,248.98,248.9,1.2523]
[1737684135346,14.76133374,249.04,248.87,1.243]
[1737684135547,4.0174,248.94,248.85,1.3641]
[1737684136754,4.0173,248.95,248.89,4.0182]